{"text_format":"1","workbook":"xlsx","n_sheets":1,"sheets":["1_с ЦАОП"],"not_rendered":{"charts":0,"images":0,"macros":1,"external_links":0,"defined_names":1,"comments":0,"pivot_tables":0},"unopened":[],"bounds":{"document_bytes":16777216,"sheet_cells":100000,"rows_first":2000,"rows_last":500,"rows_between":2000,"halvings":0,"cell_chars":16384,"cell_head_chars":4096},"cells_cut":0,"cells_raw":0,"read":"whole","date_system":"1900"}

{"sheet":"1_с ЦАОП","index":0,"n_rows":44,"n_cols":23,"rows_kept":44,"cut":false,"hidden":false,"merged":[[8,13,9,13],[7,5,7,14],[8,11,9,11],[8,10,9,10],[2,0,2,22],[3,0,3,18],[4,0,4,18],[7,0,9,0],[7,1,9,1],[7,3,9,3],[7,4,9,4],[7,15,9,15],[7,17,9,17],[8,7,9,7],[8,5,9,5],[8,2,9,2],[8,22,9,22],[7,18,9,18],[7,20,9,20],[7,21,9,21],[0,17,0,22]]}
[]
[null,null,null,null,null,null,null,null,null,null,null,null,null,null,null,null,null,null,null,null,null,"Приложение №1 к форме 1ОТ (для МО, имеющих прикрепленное население)"]
["Информация о количестве врачей (количестве занятых штатных должностей), участвующих в оказании первичной медико-санитарной помощи и о планируемых к выполнению объемах медицинской помощи на плановый 2024 год в амбулаторных условиях, в соответствии с подпунктами 16 и 18 пункта 105 Правил ОМС, утвержденных приказом Министерства здравоохранения Российской Федерации от 28.02.2019 №108н (с последующими изменениями)"]
["_____________________________________________________________________"]
["(наименование медицинской организации)"]
[]
[]
["Специальности ","Количество занятых штатных должностей врачей по утвержденному штатному расписанию по состоянию на __.___.2023г.     *)","из них:","Среднее число посещений в год на 1,0 занятую врачебную должность, установленное Приказом Министерства здравоохранения Пензенской области от 14.01.2015г. №2 \n(с последующими изменениями)","Расчетные объемы АПП, в соответствии с функцией врачебной должности и количеством занятых штатных должностей \n (в посещениях) ","Предложения МО о планируемых   к выполнению  в 2024 году объемов медицинской помощи,  в том числе:",null,null,null,null,null,null,null,null,null,"Информация о превышении планируемых МО к выполнению объемов медицинской помощи относительно количества занятых штатных должностей  и установленной функции врачебной должности ",null,"Диспансеризации \n(1 и 2 этапы) и профилактические осмотры  (в посещениях)","Посещения с профилактическими и иными целями, \nс учетом диспансеризаций и профилактических осмотров\n (в посещениях) ",null,"Неотложная медицинская помощь\n(посещения)","ИТОГО к выполнению объемы АПП с учетом неотложной медицинской помощи\n (в посещениях) \n\nгр. 14 = гр. 4 формы 1ОТ","из них:"]
[null,null,"Центры амбулаторной онкологической помощи",null,null,"Посещения с профилактическими и иными целями, \nбез учета диспансеризаций и профилактических осмотров\n (в посещениях) ","из них:","Посещения, в связи с заболеванием\n (в посещениях)",null,"из них:","Установленное  среднее число посещений по поводу заболеваний в одном обращении ","Обращения, в связи с заболеванием\n(в обращениях) ","из них:","ИТОГО к выполнению объемы АПП\n (в посещениях) ","из них:",null,null,null,null,null,null,null,"Центры амбулаторной онкологической помощи\n (в посещениях)"]
[null,null,null,null,null,null,"Центры амбулаторной онкологической помощи\n (в посещениях) ",null,null,"Центры амбулаторной онкологической помощи\n (в посещениях)",null,null,"Центры амбулаторной онкологической помощи\n(в обращениях) ",null,"Центры амбулаторной онкологической помощи"]
[1,2,"2.1.",3,"4=2*3",5,"5.1.","6=4-5",null,"6.1.",7,"8=6/7","8.1.","9=5+6","9.1.","10=4-9",null,11,"12=5+11",null,13,"14=6+12+13","14.1."]
["Кардиология",null,null,4470,{"$f":"ROUND(B12*D12,0)","v":0},null,null,{"$f":"IF(ROUND(E12-F12,0)>0, ROUND(E12-F12,0),0)","v":0},{"$f":"IF(P12<0,1,0)","v":0},null,3.1,{"$f":"ROUND(H12/$K12,0)","v":0},{"$f":"ROUND(J12/$K12,0)","v":0},{"$f":"F12+H12","v":0},{"$f":"G12+J12","v":0},{"$f":"E12-N12","v":0},null,null,{"$f":"F12+R12","v":0},null,null,{"$f":"H12+S12+U12","v":0},{"$f":"O12","v":0}]
["Кардиология детская",null,null,3470,{"$f":"ROUND(B13*D13,0)","v":0},null,null,{"$f":"IF(ROUND(E13-F13,0)>0, ROUND(E13-F13,0),0)","v":0},null,null,3.1,{"$f":"ROUND(H13/$K13,0)","v":0},{"$f":"ROUND(J13/$K13,0)","v":0},{"$f":"F13+H13","v":0},{"$f":"G13+J13","v":0},{"$f":"E13-N13","v":0},null,null,{"$f":"F13+R13","v":0},null,null,0,0]
["Ревматология",null,null,3888,0,null,null,{"$f":"IF(ROUND(E14-F14,0)>0, ROUND(E14-F14,0),0)","v":0},{"$f":"IF(P14<0,1,0)","v":0},null,3.1,0,0,0,0,0,null,null,0,null,null,0,0]
["Педиатрия   **)",null,null,5224,0,null,null,null,{"$f":"IF(P15<0,1,0)","v":0},null,2.8,0,0,0,0,0,null,null,0,null,null,0,0]
["Терапия   **)",null,null,5224,0,null,null,null,0,null,2.7,0,0,0,0,0,null,null,0,null,null,0,0]
["Пульмонология ",null,null,2724,0,null,null,{"$f":"IF(ROUND(E17-F17,0)>0, ROUND(E17-F17,0),0)","v":0},0,null,2.7,0,0,0,0,0,null,null,0,null,null,0,0]
["Гастроэнтерология",null,null,4315,0,null,null,{"$f":"IF(ROUND(E18-F18,0)>0, ROUND(E18-F18,0),0)","v":0},0,null,2.7,0,0,0,0,0,null,null,0,null,null,0,0]
["Нефрология (без учета заместительной почечной терапии)",null,null,2231,0,null,null,0,0,null,2.7,0,0,0,0,0,null,null,0,null,null,0,0]
["Гематология",null,null,3779,0,null,null,0,0,null,2.7,0,0,0,0,0,null,null,0,null,null,0,0]
["Эндокринология, эндокринология детская",null,null,3869,0,null,null,0,0,null,2.5,0,0,0,0,0,null,null,0,null,null,0,0]
["Аллергология",null,null,3450,0,null,null,0,0,null,2.6,0,0,0,0,0,null,null,0,null,null,0,0]
["Неврология ",null,null,4600,0,null,null,0,0,null,2.9,0,0,0,0,0,null,null,0,null,null,0,0]
["Инфекционные болезни ",null,null,3800,0,null,null,0,0,null,2.4,0,0,0,0,0,null,null,0,null,null,0,0]
["Хирургия ",null,null,5500,0,null,null,0,0,null,3,0,0,0,0,0,null,null,0,null,null,0,0]
["Хирургия детская",null,null,5800,0,null,null,0,null,null,3,0,0,0,0,0,null,null,0,null,null,0,0]
["Сердечно-сосудистая хирургия",null,null,2500,0,null,null,0,0,null,3,0,0,0,0,0,null,null,0,null,null,0,0]
["Травматология -ортопедия",null,null,5500,0,null,null,0,0,null,3,0,0,0,0,0,null,null,0,null,null,0,0]
["Нейрохирургия",null,null,2100,0,null,null,0,0,null,3,0,0,0,0,0,null,null,0,null,null,0,0]
["Онкология, онкология детская",null,null,3750,0,null,null,0,0,null,3,0,0,0,0,0,null,null,0,null,null,0,0]
["Колопроктология",null,null,2200,0,null,null,0,0,null,3,0,0,0,0,0,null,null,0,null,null,0,0]
["Урология ",null,null,4211,0,null,null,0,0,null,2.6,0,0,0,0,0,null,null,0,null,null,0,0]
["Стоматология ***)",null,null,3790,0,null,null,0,0,null,3,0,0,0,0,0,null,null,0,null,null,0,0]
["Акушерство-гинекология",null,null,5282,0,null,null,0,0,null,3.8,0,0,0,0,0,null,null,0,null,null,0,0]
["Отоларингология ",null,null,4910,0,null,null,0,0,null,4.0999999999999996,0,0,0,0,0,null,null,0,null,null,0,0]
["Офтальмология",null,null,4870,0,null,null,0,0,null,3.8,0,0,0,0,0,null,null,0,null,null,0,0]
["Дерматология ",null,null,5400,0,null,null,0,0,null,4.2,0,0,0,0,0,null,null,0,null,null,0,0]
["Гериатрия",null,null,2904,0,null,null,0,0,null,0,0,0,0,0,0,null,null,0,null,null,0,0]
["Челюстно-лицевая хирургия",null,null,2000,0,null,null,0,null,null,3,{"$f":"ROUND(H39/K39,0)","v":0},0,0,0,0,null,null,0,null,null,0,0]
["ИТОГО",{"$f":"SUM(B12:B39)","v":0},{"$f":"SUM(C12:C39)","v":0},null,{"$f":"SUM(E12:E39)","v":0},{"$f":"SUM(F12:F39)","v":0},0,0,0,0,null,0,0,0,0,0,null,{"$f":"SUM(R12:R39)","v":0},0,null,{"$f":"SUM(U12:U39)","v":0},0,0]
[]
["*) Утвержденное постоянное штатное расписание, действующее на дату подачи Уведомления."]
["**) с учетом занятых должностей по Центрам здоровья."]
["***) По специальности \"Стоматология\" количество занятых штатных должностей врачей по утвержденному штатному расписанию указывается с учетом количества занятых штатных должностей среднего медицинского персонала (зубные врачи)."]